bitfinex-derivatives/quotes_SOLF0:USTF0_20250716
["timestamp","ask_amount","ask_price","bid_price","bid_amount"]
[1752681492590,14.28539021,168.47,168.46,0.03756128]
[1752681492786,9.2237,168.47,168.46,0.03756128]
[1752681493191,10.99539021,168.48,168.46,0.03756128]
[1752681493490,5.9337,168.47,168.46,0.03756128]
[1752681494185,9.2237,168.47,168.46,0.03756128]
[1752681494483,0.03845445,168.5,168.47,3.38]
[1752681494684,0.03845445,168.5,168.47,14.37539021]
[1752681494881,5.932,168.52,168.48,3.38]
[1752681495084,3.29,168.57,168.49,3.38]
[1752681495584,3.29,168.57,168.5,5.9324]
[1752681496086,3.29,168.56,168.52,0.04464493]
[1752681496291,3.29,168.58,168.53,3.38]
[1752681496493,3.29,168.61,168.54,3.38]
[1752681496688,10.99539021,168.59,168.54,3.38]
[1752681496890,5.9304,168.57,168.54,3.42460762]
[1752681497087,3.27,168.58,168.55,3.26]
[1752681497284,3.27,168.59,168.55,3.26]
[1752681497586,3.27,168.59,168.54,0.04460762]
[1752681497781,3.27,168.57,168.54,0.04460762]
[1752681497982,14.26539021,168.55,168.54,0.04460762]
[1752681498182,14.26539021,168.55,168.48,3.26]
[1752681498594,14.26539021,168.55,168.48,9.1933]
[1752681499293,10.99539021,168.49,168.4,3.26]
[1752681499697,5.9327,168.5,168.46,5.9338]
[1752681499894,10.99539021,168.49,168.4,3.26]
[1752681500090,14.26539021,168.49,168.4,3.26]
[1752681500790,5.9338,168.47,168.43,5.9348]
[1752681500995,14.26539021,168.51,168.44,3.26]
[1752681501200,14.26539021,168.51,168.45,2.82575442]
[1752681501396,14.26539021,168.51,168.47,3.26]
[1752681501397,5.9327,168.5,168.47,3.26]
[1752681501588,14.26539021,168.51,168.48,6.08575442]
[1752681501794,14.26539021,168.54,168.5,3.26]
[1752681501996,14.26539021,168.54,168.51,6.08575442]
[1752681502199,10.99539021,168.6,168.52,2.82575442]
[1752681502397,10.99539021,168.6,168.56,9.1903]
[1752681502398,20.19459021,168.6,168.56,9.1903]
[1752681502602,8.27,168.65,168.54,3.26]
[1752681502899,6.62072133,168.83,168.56,3.26]
[1752681503193,3.27,168.74,168.61,3.26]
[1752681503395,14.23205729,168.74,168.65,3.26]
[1752681503593,17.21383161,168.71,168.65,3.26]
[1752681503794,10.96599899,168.7,168.6,512.72]
[1752681503998,10.96599899,168.7,168.61,6.08275527]
[1752681504194,6.25177432,168.71,168.62,2.82275527]
[1752681504395,6.25177432,168.71,168.64,3.26]
[1752681504396,10.96599899,168.7,168.64,3.26]
[1752681504698,10.96599899,168.67,168.61,3.26]
[1752681504898,10.96599899,168.67,168.63,3.26]
[1752681505197,9.52177432,168.71,168.65,3.26]
[1752681505397,6.25177432,168.71,168.65,3.26]
[1752681505599,6.25177432,168.71,168.66,2.81346961]
[1752681505794,3.27,168.82,168.74,3.26]
[1752681505995,10.96599899,168.75,168.63,189.82]
[1752681506305,10.96599899,168.84,168.64,3.26]
[1752681506306,10.96599899,168.72,168.64,3.26]
[1752681506492,3.27,168.71,168.64,3.26]
[1752681506691,3.27,168.67,168.61,3.26]
[1752681506898,9.1968,168.67,168.61,3.26]
[1752681507097,3.27,168.7,168.6,512.72]
[1752681507294,10.96599899,168.72,168.65,3.26]
[1752681507498,3.27,168.71,168.65,3.26]
[1752681507697,512.4,168.78,168.62,3.26]
[1752681507698,3.27,168.68,168.62,3.26]
[1752681507898,9.1974,168.65,168.62,3.26]
[1752681508096,3.27,168.65,168.62,3.26]
[1752681508300,3.27,168.71,168.64,3.26]
[1752681509004,10.96599899,168.72,168.53,3.26]
[1752681509005,3.27,168.65,168.53,3.26]
[1752681509197,10.96599899,168.72,168.55,3.26]
[1752681509198,10.96599899,168.6,168.55,3.26]
[1752681509401,14.23599899,168.63,168.49,3.26]
[1752681509603,3.27,168.63,168.52,3.26]
[1752681509803,177.78,168.72,168.54,3.26]
[1752681510007,29.7467,168.77,168.56,3.26]
[1752681510008,3.27,168.7,168.56,3.26]
[1752681510302,5.9275,168.65,168.59,5.9294]
[1752681510505,5.9275,168.65,168.6,2.80905994]
[1752681510705,10.96599899,168.7,168.61,2.80905994]
[1752681510911,5.9289,168.61,168.54,3.26]
[1752681511106,10.96599899,168.62,168.55,2.80232021]
[1752681511308,10.96599899,168.62,168.58,3.26]
[1752681511503,10.96599899,168.61,168.59,2.80232021]
[1752681511706,10.96599899,168.61,168.54,3.26]
[1752681511707,3.27,168.6,168.54,3.26]
[1752681511907,14.23599899,168.58,168.55,2.80135698]
[1752681512109,14.23599899,168.61,168.56,2.80135698]
[1752681512407,3.27,168.67,168.57,2.80135698]
[1752681512609,14.23599899,168.57,168.5,3.26]
[1752681512802,512.28,168.68,168.51,2.80169275]
[1752681512803,3.27,168.53,168.51,2.80169275]
[1752681513000,3.27,168.56,168.5,3.26]
[1752681513206,10.96599899,168.55,168.51,2.80161877]
[1752681513399,10.96599899,168.55,168.53,3.26]
[1752681513608,3.27,168.61,168.55,3.26]
[1752681513805,14.23599899,168.61,168.57,3.26]
[1752681514003,10.96599899,168.63,168.54,3.26]
[1752681514207,14.23599899,168.63,168.57,3.26]
[1752681514510,14.23599899,168.66,168.59,3.26]
[1752681514809,3.27,168.66,168.6,2.79519371]
[1752681515005,3.27,168.66,168.61,2.79398788]
[1752681515312,3.27,168.64,168.56,6.05291483]
[1752681515510,10.96599899,168.63,168.57,2.79291483]
[1752681515711,10.96599899,168.63,168.58,2.79291483]
[1752681516009,3.27,168.61,168.59,2.79296085]
[1752681516204,3.27,168.61,168.57,3.26]
[1752681516398,3.27,168.61,168.58,6.05183401]
[1752681516606,5.9289,168.61,168.59,2.79183401]
[1752681516811,3.27,168.62,168.58,3.26]
[1752681517110,3.27,168.62,168.5,203.66599899]
[1752681517111,3.27,168.65,168.56,10.96599899]
[1752681517303,10.96599899,168.66,168.57,6.05150427]
[1752681517614,192.64,168.75,168.47,10.96599899]
[1752681517615,10.96599899,168.6,168.47,10.96599899]
[1752681517911,3.27,168.59,168.49,3.26]
[1752681518110,10.96599899,168.72,168.54,5.9309]
[1752681518111,5.9292,168.6,168.54,5.9309]
[1752681518301,10.96599899,168.59,168.55,2.78975914]
[1752681518607,3.27,168.53,168.52,2.78999639]
[1752681518809,3.27,168.52,168.41,3.26]
[1752681519110,10.96599899,168.53,168.42,3.26]
[1752681519302,3.27,168.52,168.42,3.26]
[1752681519709,5.9333,168.49,168.44,5.9345]
[1752681520012,3.27,168.49,168.46,3.26]
[1752681520310,10.96599899,168.5,168.41,3.26]
[1752681520503,3.27,168.59,168.41,3.26]
[1752681520704,5.9322,168.52,168.46,5.9338]
[1752681520906,10.96599899,168.55,168.48,3.26]
[1752681521204,5.9315,168.54,168.48,9.1934]
[1752681521406,10.96599899,168.55,168.48,9.1934]
[1752681521609,10.96599899,168.55,168.48,3.26]
[1752681521809,5.9316,168.53,168.48,5.9333]
[1752681522111,10.96599899,168.55,168.5,3.26]
[1752681522308,3.27,168.54,168.5,3.26]
[1752681522508,10.96599899,168.55,168.44,3.26]
[1752681522906,5.9313,168.54,168.44,3.26]
[1752681523120,10.96599899,168.55,168.44,3.26]
[1752681523313,14.23599899,168.55,168.44,3.26]
[1752681523513,14.23599899,168.55,168.41,10.96599899]
[1752681523514,5.9321,168.52,168.46,5.934]
[1752681523714,14.23599899,168.55,168.47,3.26]
[1752681523915,5.9334,168.48,168.43,5.9351]
[1752681524212,10.96599899,168.49,168.42,3.26]
[1752681524615,3.27,168.54,168.44,3.26]
[1752681525015,3.27,168.57,168.44,3.26]
[1752681525211,3.27,168.57,168.47,3.26]
[1752681525411,10.96599899,168.62,168.49,10.96599899]
[1752681525716,14.23599899,168.62,168.54,3.26]
[1752681526111,3.27,168.61,168.54,3.26]
[1752681526513,5.9299,168.58,168.54,3.26]
[1752681526717,3.27,168.61,168.55,3.42]
[1752681527113,3.19,168.65,168.55,3.42]
[1752681527615,3.19,168.65,168.58,3.42]
[1752681528018,3.19,168.68,168.58,3.42]
[1752681528215,5.9274,168.65,168.6,3.42]
[1752681528415,5.9274,168.65,168.61,3.42]
[1752681528615,5.9278,168.64,168.58,3.42]
[1752681528824,3.19,168.65,168.58,3.42]
[1752681529213,9.1176,168.65,168.56,10.96599899]
[1752681529408,10.96599899,168.69,168.62,3.42]
[1752681529620,3.19,168.68,168.62,3.42]
[1752681530217,14.15599899,168.63,168.57,3.42]
[1752681530916,10.96599899,168.65,168.6,3.42]
[1752681531118,10.96599899,168.65,168.62,3.42]
[1752681531119,3.19,168.65,168.62,3.42]
[1752681531321,9.1176,168.65,168.63,2.78031505]
[1752681531517,3.19,168.67,168.64,2.78031505]
[1752681531713,3.19,168.66,168.65,2.78031505]
[1752681531913,5.9275,168.65,168.62,3.42]
[1752681532225,10.96599899,168.69,168.64,3.42]
[1752681532421,10.96599899,168.69,168.65,2.77984034]
[1752681532422,5.927,168.67,168.65,2.77984034]
[1752681532622,3.19,168.68,168.66,2.77984034]
[1752681532822,3.19,168.68,168.67,2.77984034]
[1752681533023,9.1163,168.68,168.67,2.77984034]
[1752681533322,9.1163,168.68,168.56,3.42]
[1752681533323,3.19,168.68,168.56,3.42]
[1752681533526,10.96599899,168.69,168.57,10.96599899]
[1752681533722,14.15599899,168.71,168.61,3.42]
[1752681534114,5.9259,168.7,168.65,3.42]
[1752681534318,14.15599899,168.71,168.66,3.42]
[1752681534319,3.19,168.71,168.66,3.42]
[1752681534526,3.19,168.71,168.67,3.42]
[1752681534824,9.1155,168.71,168.67,3.42]
[1752681535015,9.1155,168.71,168.6,10.96599899]
[1752681535214,3.19,168.71,168.68,3.42]
[1752681535525,156.34320995,168.77,168.64,3.42]
[1752681535526,3.19,168.74,168.64,3.42]
[1752681535822,5.9253,168.71,168.64,3.42]
[1752681536422,5.9256,168.7,168.65,5.9273]
[1752681536618,3.19,168.71,168.59,3.42]
[1752681536815,10.96599899,168.7,168.6,10.96599899]
[1752681537020,9.1155,168.71,168.66,3.42]
[1752681537224,10.96599899,168.73,168.6,10.96599899]
[1752681537420,3.19,168.72,168.65,5.9273]
[1752681537727,3.19,168.72,168.66,3.42]
[1752681538024,3.19,168.7,168.66,3.42]
[1752681538225,10.96599899,168.68,168.59,3.42]
[1752681538421,14.15599899,168.68,168.59,3.42]
[1752681538814,5.9279,168.64,168.59,5.9294]
[1752681539021,10.96599899,168.65,168.58,515.64]
[1752681539222,156.34320995,168.77,168.64,3.42]
[1752681539223,5.9264,168.68,168.64,3.42]
[1752681539424,3.19,168.69,168.65,3.42]
[1752681539627,10.96599899,168.67,168.59,3.42]
[1752681539827,3.19,168.66,168.59,3.42]
[1752681540222,5.9288,168.61,168.59,3.42]
[1752681540532,10.96599899,168.65,168.6,3.42]
[1752681540533,3.19,168.63,168.6,3.42]
[1752681540724,5.9264,168.68,168.56,3.42]
[1752681540922,14.15599899,168.7,168.64,3.42]
[1752681541120,3.19,168.73,168.64,3.42]
[1752681541320,3.19,168.73,168.69,3.42]
[1752681541526,10.96599899,168.75,168.65,3.42]
[1752681541827,3.19,168.76,168.65,3.42]
[1752681542218,10.96599899,168.75,168.65,3.42]
[1752681542422,3.19,168.75,168.7,3.42]
[1752681542724,3.19,168.75,168.63,10.96599899]
[1752681542725,3.19,168.75,168.64,3.42]
[1752681542924,10.96599899,168.77,168.66,10.96599899]
[1752681543123,14.15599899,168.78,168.67,3.42]
[1752681543318,3.19,168.78,168.72,5.9246]
[1752681543525,3.19,168.78,168.72,3.42]
[1752681543719,3.19,168.77,168.65,3.42]
[1752681543924,5.9243,168.74,168.65,3.42]
[1752681544128,3.19,168.77,168.65,3.42]
[1752681544329,3.19,168.77,168.68,3.42]
[1752681544526,5.9236,168.76,168.71,5.925]
[1752681544729,10.96599899,168.8,168.68,3.42]
[1752681545025,3.19,168.8,168.76,3.42]
[1752681545529,9.1123,168.8,168.76,3.42]
[1752681545724,10.96599899,168.84,168.7,10.96599899]
[1752681545929,10.96599899,168.84,168.62,16.68198337]
[1752681545930,3.19,168.83,168.72,3.42]
[1752681546230,3.19,168.8,168.73,2.71122307]
[1752681546429,3.19,168.8,168.74,6.13195554]
[1752681546626,3.19,168.83,168.75,2.71195554]
[1752681546933,3.19,168.83,168.77,3.42]
[1752681547124,3.19,168.84,168.75,3.42]
[1752681547430,190.94,168.9,168.78,3.42]
[1752681547431,3.19,168.87,168.78,3.42]
[1752681548024,3.19,168.86,168.78,3.42]
[1752681548728,3.19,168.84,168.79,2.70550185]
[1752681549029,3.19,168.84,168.75,3.42]
[1752681549229,3.19,168.84,168.76,2.70658949]
[1752681549433,3.19,168.84,168.77,2.70658949]
[1752681549736,3.19,168.84,168.78,6.12658949]
[1752681549935,3.19,168.84,168.79,2.70658949]
[1752681550225,3.19,168.87,168.81,3.42]
[1752681550425,3.19,168.85,168.77,3.42]
[1752681550622,10.96599899,168.83,168.77,3.42]
[1752681550825,10.96599899,168.8,168.71,3.42]
[1752681551025,3.19,168.79,168.72,2.70228492]
[1752681551230,10.96599899,168.84,168.65,191.14]
[1752681551231,3.19,168.76,168.68,3.42]
[1752681551422,3.19,168.76,168.69,2.70322262]
[1752681551724,5.9246,168.74,168.7,2.70322262]
[1752681551925,10.96599899,168.77,168.71,6.12322262]
[1752681552131,3.19,168.76,168.68,3.42]
[1752681552329,3.19,168.73,168.69,2.70294062]
[1752681552530,3.19,168.73,168.7,3.42]
[1752681552725,14.15599899,168.77,168.7,3.42]
[1752681552935,14.15599899,168.77,168.71,3.42]
[1752681553426,3.19,168.77,168.72,6.12412341]
[1752681553730,3.19,168.77,168.67,10.96599899]
[1752681553731,3.19,168.77,168.73,2.87212978]
[1752681553931,3.19,168.78,168.74,2.87212978]
[1752681554132,10.96599899,168.76,168.64,202.06599899]
[1752681554331,3.19,168.75,168.66,3.42]
[1752681554522,3.19,168.75,168.67,2.87318534]
[1752681554728,3.19,168.75,168.68,6.29318534]
[1752681554926,3.19,168.75,168.69,2.87318534]
[1752681555231,3.19,168.78,168.71,3.42]
[1752681555431,3.19,168.78,168.73,3.42]
[1752681555633,3.19,168.77,168.74,2.87318534]
[1752681555822,3.19,168.75,168.68,3.42]
[1752681556024,3.19,168.75,168.55,14.82713741]
[1752681556025,3.19,168.75,168.69,2.87489548]
[1752681556339,3.19,168.69,168.62,3.42]
[1752681556735,3.31,168.66,168.55,3.48]
[1752681556934,10.96599899,168.72,168.55,3.48]
[1752681556935,14.27599899,168.63,168.55,3.48]
[1752681557132,14.27599899,168.63,168.58,5.9299]
[1752681557336,720.82,168.71,168.58,3.48]
[1752681557337,3.31,168.62,168.58,3.48]
[1752681557733,9.2385,168.62,168.58,3.48]
[1752681558233,3.31,168.61,168.57,3.48]
[1752681558435,3.31,168.61,168.55,3.48]
[1752681558839,3.31,168.59,168.49,3.48]
[1752681559336,3.31,168.56,168.49,3.48]
[1752681559631,10.96599899,168.54,168.49,3.48]
[1752681559837,3.31,168.52,168.49,3.48]
[1752681560031,10.96599899,168.54,168.49,3.48]
[1752681560429,10.96599899,168.6,168.49,3.48]
[1752681560633,10.96599899,168.6,168.46,3.48]
[1752681560634,10.96599899,168.54,168.46,3.48]
[1752681560835,10.96599899,168.56,168.46,3.48]
[1752681561039,10.96599899,168.56,168.48,3.48]
[1752681561437,16.89669899,168.56,168.5,5.9327]
[1752681561638,16.89669899,168.56,168.5,3.48]
[1752681561639,10.96599899,168.56,168.5,3.48]
[1752681562136,10.96599899,168.53,168.47,3.48]
[1752681562336,0.49,168.52,168.42,3.48]
[1752681562539,17.38879899,168.5,168.42,3.48]
[1752681562739,11.45599899,168.5,168.42,3.48]
[1752681562932,10.96599899,168.6,168.42,3.48]
[1752681563137,11.45599899,168.53,168.42,3.48]
[1752681563441,0.49,168.52,168.42,3.48]
[1752681563637,5.9327,168.51,168.42,3.48]
[1752681563935,0.49,168.52,168.42,3.48]
[1752681564144,5.9324,168.51,168.46,3.48]
[1752681564445,0.49,168.51,168.46,3.48]
[1752681564637,11.45599899,168.49,168.4,3.48]
[1752681564843,0.49,168.48,168.4,3.48]
[1752681565141,0.49,168.48,168.37,511.86]
[1752681565335,28.86599899,168.6,168.4,3.48]
[1752681565336,11.45599899,168.46,168.4,3.48]
[1752681566136,17.39039899,168.46,168.4,9.4162]
[1752681566340,11.45599899,168.46,168.4,3.48]
[1752681566534,11.45599899,168.49,168.4,3.48]
[1752681566739,11.45599899,168.49,168.37,10.96599899]
[1752681566740,11.45599899,168.49,168.43,3.48]
[1752681566942,10.96599899,168.49,168.37,10.96599899]
[1752681567141,0.49,168.48,168.42,5.9354]
[1752681567341,0.49,168.48,168.41,3.48]
[1752681567536,10.96599899,168.49,168.41,3.48]
[1752681567735,0.49,168.51,168.41,3.48]
[1752681568139,6.4225,168.51,168.45,5.9343]
[1752681568340,6.4225,168.51,168.45,3.48]
[1752681568540,0.49,168.51,168.39,10.96599899]
[1752681568746,170.57319853,168.59,168.42,3.48]
[1752681568747,5.9341,168.47,168.42,3.48]
[1752681568946,0.49,168.46,168.43,2.79583112]
[1752681569150,0.49,168.46,168.42,3.48]
[1752681569354,0.49,168.46,168.43,2.79623026]
[1752681569550,0.49,168.46,168.44,2.79569442]
[1752681569751,6.4241,168.46,168.45,2.79569442]
[1752681570052,0.49,168.48,168.45,2.79569442]
[1752681570248,0.49,168.48,168.42,3.48]
[1752681570448,0.49,168.48,168.43,2.79465053]
[1752681570649,0.49,168.45,168.36,193.78]
[1752681570850,11.45599899,168.43,168.36,193.78]
[1752681571047,17.39119899,168.43,168.39,5.9364]
[1752681571251,11.45599899,168.43,168.39,9.4164]
[1752681571644,10.96599899,168.45,168.4,3.48]
[1752681571849,0.49,168.44,168.37,3.48]
[1752681572243,6.4256,168.42,168.37,3.48]
[1752681572855,6.4256,168.42,168.32,3.48]
[1752681573053,0.49,168.42,168.32,3.48]
[1752681573649,0.49,168.41,168.32,3.48]
[1752681574051,5.9367,168.39,168.32,3.48]
[1752681574251,0.49,168.41,168.32,3.48]
[1752681574457,11.45599899,168.41,168.32,3.48]
[1752681574650,5.9363,168.4,168.32,3.48]
[1752681574847,11.45599899,168.41,168.32,3.48]
[1752681575149,0.49,168.4,168.32,3.48]
[1752681575350,5.9372,168.38,168.32,3.48]
[1752681575550,0.49,168.4,168.32,3.48]
[1752681575953,5.9372,168.38,168.32,3.48]
[1752681576156,5.9372,168.38,168.33,5.9387]
[1752681576347,5.9372,168.38,168.28,701.96]
[1752681576348,10.96599899,168.38,168.31,3.48]
[1752681576553,0.49,168.37,168.29,3.48]
[1752681576752,10.96599899,168.35,168.33,3.48]
[1752681577151,0.49,168.37,168.34,3.48]
[1752681577457,17.39239899,168.4,168.34,3.48]
[1752681577657,10.96599899,168.4,168.34,3.48]
[1752681577858,10.96599899,168.4,168.36,5.9374]
[1752681578056,10.96599899,168.4,168.3,10.96599899]
[1752681578057,10.96599899,168.4,168.37,3.48]
[1752681578359,10.96599899,168.48,168.35,3.48]
[1752681578556,11.45599899,168.48,168.38,3.48]
[1752681578949,5.9345,168.45,168.4,3.48]
[1752681579149,0.49,168.47,168.4,3.48]
[1752681579458,0.49,168.47,168.4,9.4162]
[1752681579654,5.9348,168.45,168.4,5.9362]
[1752681579858,6.4248,168.45,168.41,3.48]
[1752681580050,5.934,168.47,168.42,3.48]
[1752681580246,11.45599899,168.48,168.43,3.48]
[1752681580452,0.49,168.47,168.43,3.48]
[1752681580647,0.49,168.46,168.43,3.48]
[1752681580855,6.4242,168.46,168.43,3.48]
[1752681581448,5.9345,168.45,168.42,5.9353]
[1752681581656,11.45599899,168.45,168.32,10.96599899]
[1752681581854,11.45599899,168.42,168.33,3.48]
[1752681582653,11.45599899,168.42,168.28,523.16599899]
[1752681582654,11.45599899,168.42,168.36,3.48]
[1752681583151,5.936,168.41,168.37,5.9373]
[1752681583461,11.45599899,168.42,168.39,3.48]
[1752681583650,10.96599899,168.42,168.31,10.96599899]
[1752681583857,10.96599899,168.44,168.41,3.48]
[1752681584059,11.45599899,168.44,168.41,3.48]
[1752681584259,10.96599899,168.46,168.43,3.48]
[1752681584460,10.96599899,168.47,168.44,3.48]
[1752681584860,16.89979899,168.47,168.44,3.48]
[1752681585362,0.49,168.5,168.44,3.48]
[1752681585560,11.45599899,168.48,168.44,3.48]
[1752681585960,10.96599899,168.48,168.44,3.48]
[1752681586159,0.49,168.47,168.42,5.9353]
[1752681586352,0.49,168.47,168.42,9.4153]
[1752681586661,5.9344,168.46,168.43,3.48]
[1752681586861,10.96599899,168.48,168.44,3.51]
[1752681587057,0.5,168.51,168.37,10.96599899]
[1752681587058,0.5,168.51,168.38,3.51]
[1752681587259,11.46599899,168.51,168.45,5.9342]
[1752681587457,10.96599899,168.48,168.4,3.51]
[1752681587858,10.96599899,168.48,168.38,3.51]
[1752681588053,5.9342,168.46,168.4,3.51]
[1752681588455,10.96599899,168.48,168.42,9.4453]
[1752681588655,5.9342,168.46,168.43,3.51]
[1752681589256,5.9345,168.45,168.43,3.51]
[1752681589463,11.46599899,168.48,168.43,3.51]
[1752681589856,11.46599899,168.48,168.44,3.51]
[1752681590056,11.46599899,168.48,168.34,73.8767]
[1752681590057,10.96599899,168.55,168.42,3.51]
[1752681590259,0.5,168.56,168.46,3.51]
[1752681590462,11.46599899,168.58,168.48,3.51]
[1752681590655,5.9317,168.53,168.49,5.933]
[1752681590855,10.96599899,168.55,168.49,5.933]
[1752681591056,11.46599899,168.55,168.48,3.51]
[1752681591366,218.3568,168.63,168.48,3.51]
[1752681591367,6.4323,168.52,168.48,3.51]
[1752681591666,10.96599899,168.53,168.43,3.51]
[1752681591868,5.9314,168.54,168.51,3.51]
[1752681592272,5.9323,168.52,168.47,5.9337]
[1752681592465,0.5,168.52,168.48,3.51]
[1752681592668,0.5,168.52,168.43,3.51]
[1752681592860,11.46599899,168.55,168.43,3.51]
[1752681593063,10.96599899,168.55,168.43,3.51]
[1752681593270,10.96599899,168.46,168.44,3.51]
[1752681593765,10.96599899,168.48,168.44,3.51]
[1752681594071,10.96599899,168.48,168.45,3.51]
[1752681594271,10.96599899,168.48,168.46,3.51]
[1752681594970,10.96599899,168.48,168.45,5.9344]
[1752681595170,10.96599899,168.5,168.39,3.51]
[1752681595568,10.96599899,168.5,168.47,3.51]
[1752681595770,11.46599899,168.5,168.39,3.51]
[1752681596273,10.96599899,168.47,168.39,3.51]
[1752681596575,0.5,168.46,168.39,3.51]
[1752681596963,10.96599899,168.46,168.39,3.51]
[1752681597273,10.96599899,168.48,168.41,3.51]
[1752681597574,10.96599899,168.48,168.43,5.935]
[1752681597770,10.96599899,168.48,168.45,3.51]
[1752681598071,10.96599899,168.48,168.43,5.935]
[1752681598269,10.96599899,168.5,168.39,3.51]
[1752681598465,10.96599899,168.5,168.38,10.96599899]
[1752681598466,10.96599899,168.5,168.41,3.51]
[1752681598664,10.96599899,168.5,168.38,10.96599899]
[1752681598665,10.96599899,168.5,168.44,5.9346]
[1752681599065,0.5,168.49,168.45,6.22778789]
[1752681599373,10.96599899,168.5,168.42,3.51]
[1752681599374,0.5,168.48,168.42,3.51]
[1752681599567,512.7,168.54,168.43,2.72079837]
[1752681599568,10.96599899,168.47,168.43,2.72079837]
[1752681599773,11.46599899,168.47,168.44,2.72079837]
[1752681599965,11.46599899,168.47,168.45,2.72079837]
[1752681600168,10.96599899,168.47,168.43,3.51]
[1752681600372,512.7,168.54,168.34,188.24]
[1752681600373,0.5,168.5,168.34,188.24]
[1752681600674,0.5,168.5,168.39,9.79075521]
[1752681601073,0.5,168.5,168.4,2.72432438]
[1752681601275,0.5,168.5,168.41,2.72432438]
[1752681601478,0.5,168.5,168.42,2.72432438]
[1752681601776,0.5,168.5,168.43,2.72432438]
[1752681601967,0.5,168.5,168.44,2.72432438]
[1752681602166,512.7,168.54,168.45,2.72432438]
[1752681602366,512.7,168.54,168.46,2.72432438]
[1752681602572,512.7,168.54,168.47,2.72432438]
[1752681602774,512.7,168.54,168.48,2.72432438]
[1752681602775,0.5,168.53,168.48,2.72432438]
[1752681602974,0.5,168.53,168.49,2.72432438]
[1752681603175,512.7,168.54,168.5,2.72432438]
[1752681603479,512.7,168.54,168.51,2.72432438]
[1752681603776,512.7,168.54,168.39,4.89527085]
[1752681604169,512.74431269,168.54,168.4,2.73568236]
[1752681604370,512.7,168.54,168.45,0.03849789]
[1752681604577,5.9322,168.52,168.46,2.73568236]
[1752681604771,0.04190349,168.48,168.47,2.73568236]
[1752681605171,5.98190349,168.48,168.39,4.89527085]
[1752681605376,0.04190349,168.48,168.39,4.89527085]
[1752681605578,381.7047,168.69,168.39,4.89527085]
[1752681605579,512.7,168.62,168.39,4.89527085]
[1752681605779,187.78,168.61,168.39,4.89527085]
[1752681606173,512.7,168.7,168.4,512.7]
[1752681606374,512.7,168.7,168.41,187.74]
[1752681606678,11.8538,168.67,168.42,62.0]
[1752681606878,512.7,168.7,168.42,79.85]
[1752681607074,17.7625,168.84,168.42,35.75]
[1752681607075,512.7,168.8,168.42,35.75]
[1752681607274,205.7,168.79,168.47,11.8671]
[1752681607476,512.7,168.8,168.59,0.04328806]
[1752681607676,187.9,168.81,168.6,512.7]
[1752681607877,187.9,168.8,168.6,512.7]
[1752681608172,187.9,168.8,168.63,5.9279]
[1752681608483,17.9,168.79,168.7,0.03808861]
[1752681608680,17.9,168.79,168.6,518.6291]
[1752681608878,512.7,168.86,168.6,512.7]
[1752681609179,17.9,168.84,168.6,512.7]
[1752681609681,17.9,168.84,168.64,5.9277]
[1752681609882,17.9,168.84,168.6,512.7]